[Event "1st 4NCL International Open"]
[Site "Telford"]
[Date "2018.11.03"]
[Round "7"]
[White "Zabrocki, Philip"]
[Black "White, Stuart A"]
[Result "1/2-1/2"]
[ECO "B25"]
[WhiteElo "1952"]
[BlackElo "2113"]
[Annotator "NA"]
[PlyCount "38"]
[EventDate "2018.10.31"]
[EventType "swiss"]
[EventCountry "GBR"]
[SourceTitle "playchess.com"]
[Source "ChessBase"]
[SourceQuality "1"]
[TimeControl "5400+30"]

{[%evp 8,35,8,32767,32767,32767,32767,-13,-12,32767,-13,32767,32767,32767,32767,-3,32767,-2,32767,32767,32767,0,16,-8,0,32767,14,-35,32767,-51]} 1. e4 {[%emt 0:00:00]} c5 {[%emt 0:00:21]} 2. Nc3 {[%emt 0:00:00]} Nc6 {[%emt 0:00:06]} 3. g3 {[%emt 0:00:03]} g6 {[%emt 0:00:05]} 4. Bg2 {[%emt 0:00:08]} Bg7 {[%emt 0:00:04]} 5. d3 {[%emt 0:00:09]} d6 {[%emt 0:00:05]} 6. f4 {[%emt 0:00:12]} e6 {[%emt 0:00:07]} 7. Nf3 {[%emt 0:00:13]} Nge7 {[%emt 0:00:05]} 8. O-O {[%emt 0:00:08]} O-O {[%emt 0:00:03] LiveBook: 1467 Partien} 9. Be3 {[%emt 0:00:06]} Nd4 {[%emt 0:00:16]} 10. Rb1 {[%emt 0:00:33]} Nec6 {[%emt 0:01:52]} 11. Ne2 {[%emt 0:02:52]} Rb8 {[%emt 0:07:50]} 12. c3 {[%emt 0:01:34] B25: Closed Sicilian: 3 g3, lines without early Be3} Nxf3+ {[%emt 0:04:55]} 13. Bxf3 {[%emt 0:00:15]} b6 {[%emt 0:18:18]} (13... f5 14. exf5 gxf5 15. d4 cxd4 16. Nxd4 d5 17. Nxc6 bxc6 18. Bxa7 Ra8 19. Bc5 Rxa2 20. Bxf8 {1-0 (31) Stukopin,A (2471)-Usmanov,V (2289) Kirishi 2011}) 14. g4 {[%emt 0:02:47]} Ne7 {[%emt 0:02:03]} 15. Ng3 {[%emt 0:04:37]} f5 {[%emt 0:01:35]} 16. h3 $146 {[%emt 0:02:07]} ({Predecessor:} 16. gxf5 gxf5 17. Nh5 Bh6 18. Kh1 Bb7 19. Rg1+ Kh8 20. Qd2 Ng6 21. c4 Qe7 22. Rg3 e5 23. exf5 Rxf5 24. Qe2 Rxh5 {0-1 (24) Vujosevic,M (2005)-Savovic,D (2247) Cetinje 2009}) 16... Kh8 {[%emt 0:04:35]} 17. Bg2 {[%emt 0:04:22]} Bb7 {[%emt 0:01:44]} 18. d4 $15 {[%emt 0:04:26]} Qc7 {[%emt 0:05:53]} 19. gxf5 {[%emt 0:09:01]} gxf5 {[%emt 0:05:59]} 1/2-1/2

[Event "1st 4NCL International Open"]
[Site "Telford"]
[Date "2018.11.03"]
[Round "7"]
[White "Bennett, Dominic L"]
[Black "Mason, Donald J"]
[Result "0-1"]
[ECO "C01"]
[WhiteElo "1933"]
[BlackElo "2165"]
[Annotator "NA"]
[PlyCount "68"]
[EventDate "2018.10.31"]
[EventType "swiss"]
[EventCountry "GBR"]
[SourceTitle "playchess.com"]
[Source "ChessBase"]
[SourceQuality "1"]
[TimeControl "5400+30"]

1. Nf3 {[%emt 0:01:11]} e6 {[%emt 0:00:00]} 2. e4 {[%emt 0:00:43]} d5 {[%emt 0:02:29]} 3. exd5 {[%emt 0:01:37]} exd5 {[%emt 0:00:00]} 4. d4 {[%emt 0:00:06]} Nc6 {[%emt 0:00:00]} 5. Bg5 {[%emt 0:04:12]} f6 {[%emt 0:00:00]} 6. Qe2+ {[%emt 0:01:21]} Nge7 {[%emt 0:02:30]} 7. Bd2 {[%emt 0:03:31]} Bg4 {[%emt 0:02:54]} 8. c3 {[%emt 0:02:10]} Qd7 {[%emt 0:00:18]} 9. Qb5 {[%emt 0:02:18]} Rb8 {[%emt 0:18:19]} 10. Be2 {[%emt 0:07:08]} a6 {[%emt 0:03:00]} 11. Qa4 {[%emt 0:01:28]} Ng6 {[%emt 0:05:49]} 12. h3 {[%emt 0:09:35]} Be6 {[%emt 0:07:41]} 13. Qc2 {[%emt 0:07:55]} Bd6 {[%emt 0:05:13]} 14. Bd3 {[%emt 0:00:48]} O-O {[%emt 0:09:12]} 15. b4 {[%emt 0:04:17]} Rbe8 {[%emt 0:06:34]} 16. Kd1 {[%emt 0:01:10]} Rf7 {[%emt 0:06:22]} 17. Kc1 {[%emt 0:01:33]} a5 {[%emt 0:04:04]} 18. a3 {[%emt 0:01:04]} Nce7 {[%emt 0:01:48]} 19. g4 {[%emt 0:12:53]} b6 {[%emt 0:00:02]} 20. b5 {[%emt 0:02:15]} c5 {[%emt 0:05:28]} 21. a4 {[%emt 0:01:54]} c4 $19 {[%emt 0:02:01]} 22. Be2 {[%emt 0:01:28]} Nf4 {[%emt 0:01:05]} 23. Bxf4 {[%emt 0:00:43]} Bxf4+ {[%emt 0:00:05]} 24. Kb2 {[%emt 0:00:44]} Ng6 {[%emt 0:02:29]} 25. Ra2 {[%emt 0:03:55]} Rfe7 {[%emt 0:00:44]} 26. Bf1 {[%emt 0:04:28]} Bf7 {[%emt 0:01:05]} 27. Na3 {[%emt 0:04:19]} Bd6 {[%emt 0:01:13]} 28. Qf5 {[%emt 0:03:14]} Bxa3+ {[%emt 0:05:20]} 29. Rxa3 {[%emt 0:02:03]} Qd6 {[%emt 0:00:02]} 30. Qc2 {[%emt 0:04:28]} Nf4 {[%emt 0:00:14]} 31. Ra2 {[%emt 0:00:46]} Bg6 {[%emt 0:01:14]} 32. Qd1 {[%emt 0:00:27]} Nd3+ {[%emt 0:02:49]} 33. Bxd3 {[%emt 0:00:19]} Bxd3 {[%emt 0:00:03]} 34. Nh4 {[%emt 0:01:21]} Re2+ {[%emt 0:00:51]} 0-1

[Event "1st 4NCL International Open"]
[Site "Telford"]
[Date "2018.11.03"]
[Round "7"]
[White "Gibson, Christopher A"]
[Black "Paul, Nathanael"]
[Result "0-1"]
[ECO "B14"]
[WhiteElo "1924"]
[BlackElo "1890"]
[Annotator "NA"]
[PlyCount "58"]
[EventDate "2018.10.31"]
[EventType "swiss"]
[EventCountry "GBR"]
[SourceTitle "playchess.com"]
[Source "ChessBase"]
[SourceQuality "1"]
[TimeControl "5400+30"]

1. e4 {[%emt 0:00:00]} c6 {[%emt 0:00:00]} 2. d4 {[%emt 0:00:00]} d5 {[%emt 0:00:00]} 3. exd5 {[%emt 0:00:00]} cxd5 {[%emt 0:00:00]} 4. c4 {[%emt 0:00:00]} Nf6 {[%emt 0:00:00]} 5. Nc3 {[%emt 0:00:00]} Nc6 {[%emt 0:00:18] LiveBook: 2906 Games} 6. Bg5 {[%emt 0:00:10]} e6 {[%emt 0:09:01]} 7. Nf3 {[%emt 0:00:52]} Be7 {[%emt 0:01:21]} 8. Bd3 {[%emt 0:02:55]} dxc4 {[%emt 0:04:14] B14: Caro-Kann: Panov-Botvinnik Attack with 5...e6 and 5...g6} 9. Bxc4 {[%emt 0:00:22]} O-O {[%emt 0:00:08]} 10. Rc1 {[%emt 0:04:10]} a6 {[%emt 0:01:13]} 11. Bd3 {[%emt 0:11:03]} b5 {[%emt 0:13:42]} 12. O-O {[%emt 0:14:29]} Bb7 {[%emt 0:00:45]} 13. Bb1 {[%emt 0:18:26] [#]} Nd5 $146 {[%emt 0:15:21]} ({Predecessor:} 13... Rc8 14. Re1 Re8 15. a3 Nb8 16. Ne5 Nbd7 17. Qe2 Nf8 18. Bxf6 Bxf6 19. Be4 Bxe4 20. Qxe4 {½-½ (40) Yevseev,D (2529)-Goganov,A (2523) St Petersburg 2012}) 14. Qd3 {[%emt 0:11:07]} f5 {[%emt 0:03:42]} 15. Bxe7 {[%emt 0:01:15]} Ncxe7 {[%emt 0:02:35]} 16. Ne2 {[%emt 0:00:47]} Ng6 {[%emt 0:00:35]} 17. Qd2 {[%emt 0:03:26]} Qd6 {[%emt 0:03:14]} 18. Rfe1 $15 {[%emt 0:05:47]} Rf6 {[%emt 0:02:43]} 19. g3 {[%emt 0:09:03]} Rd8 {[%emt 0:06:40]} 20. Ng5 {[%emt 0:03:48]} Nb6 {[%emt 0:04:49]} 21. Nf4 {[%emt 0:02:52]} Nc4 {[%emt 0:05:11]} 22. Rxc4 {[%emt 0:01:58]} bxc4 {[%emt 0:00:08]} 23. Ngxe6 {[%emt 0:00:38]} Re8 {[%emt 0:02:59]} 24. d5 {[%emt 0:03:46]} Ne5 {[%emt 0:08:16]} 25. Qe3 {[%emt 0:01:23]} Rfxe6 {[%emt 0:02:35]} 26. dxe6 {[%emt 0:00:45]} Qc6 {[%emt 0:00:06]} 27. f3 {[%emt 0:01:17]} Nxf3+ {[%emt 0:00:28]} 28. Kf2 {[%emt 0:00:49]} Nxe1 {[%emt 0:00:18]} 29. Qxe1 {[%emt 0:00:11]} g5 {[%emt 0:02:37]} 0-1

[Event "1st 4NCL International Open"]
[Site "Telford"]
[Date "2018.11.03"]
[Round "7"]
[White "Rahulan, Thivyaa"]
[Black "Akeya-Price, Robert"]
[Result "0-1"]
[ECO "B10"]
[WhiteElo "1868"]
[BlackElo "1730"]
[Annotator "NA"]
[PlyCount "85"]
[EventDate "2018.10.31"]
[EventType "swiss"]
[EventCountry "GBR"]
[SourceTitle "playchess.com"]
[Source "ChessBase"]
[SourceQuality "1"]
[TimeControl "5400+30"]

1. e4 {[%emt 0:00:00]} c6 {[%emt 0:00:00]} 2. c4 {[%emt 0:00:30]} d5 {[%emt 0:00:00]} 3. cxd5 {[%emt 0:00:09]} cxd5 {[%emt 0:00:00]} 4. exd5 {[%emt 0:00:05]} Nf6 {[%emt 0:00:00]} 5. Qa4+ {[%emt 0:00:07]} Nbd7 {[%emt 0:00:00]} 6. Nc3 {[%emt 0:00:16]} g6 {[%emt 0:00:10]} 7. Bc4 {[%emt 0:00:11]} Bg7 {[%emt 0:00:10]} 8. d3 {[%emt 0:01:29] B10: Caro-Kann: 2 d3 and 2 c4} O-O {[%emt 0:00:14]} 9. Be3 {[%emt 0:00:49]} (9. Nf3 a6 10. Qa3 b6 11. O-O Bb7 12. Re1 Re8 13. Be3 b5 14. Bb3 Nb6 15. Bxb6 Qxb6 {0-1 (36) Bortnyk,O (2579)-Grischuk,A (2747) ICC INT 2016}) 9... a6 {[%emt 0:01:25]} 10. Qa3 {[%emt 0:00:23]} Nb6 {[%emt 0:02:13]} 11. Qb3 {[%emt 0:00:58]} Nbd7 $146 {[%emt 0:02:03]} ({Predecessor:} 11... Nxc4 12. dxc4 b5 13. cxb5 axb5 14. Rd1 b4 15. Qxb4 {0-1 (75) Seirawan,Y (2620)-Abel,D (2441) Berlin 2015}) 12. a4 {[%emt 0:00:21]} b6 {[%emt 0:05:05]} 13. Nf3 {[%emt 0:04:17]} Qc7 {[%emt 0:05:26]} 14. Rc1 {[%emt 0:03:30]} Nc5 {[%emt 0:04:35]} (14... Ng4 $1 $11) 15. Qa2 {[%emt 0:04:26]} Bf5 {[%emt 0:04:11]} 16. Rd1 {[%emt 0:03:23]} Bg4 {[%emt 0:10:05]} 17. b4 {[%emt 0:29:46]} Ncd7 {[%emt 0:10:34]} 18. Rc1 {[%emt 0:00:00]} Bxf3 {[%emt 0:02:00]} 19. gxf3 {[%emt 0:00:00]} Qb7 {[%emt 0:05:10]} 20. Qd2 {[%emt 0:00:00]} Rfc8 {[%emt 0:08:57]} 21. O-O {[%emt 0:08:08]} Ne5 {[%emt 0:23:19]} 22. Qe2 {[%emt 0:06:05]} b5 $11 {[%emt 0:04:06]} 23. f4 {[%emt 0:16:03]} Nxc4 {[%emt 0:00:13]} 24. dxc4 {[%emt 0:02:48]} Rxc4 {[%emt 0:01:37]} 25. axb5 {[%emt 0:00:00]} axb5 26. Nxb5 {[%emt 0:06:01]} Rxc1 {[%emt 0:00:04]} 27. Rxc1 {[%emt 0:00:37]} Nxd5 {[%emt 0:03:30]} 28. Rb1 {[%emt 0:00:31]} Rb8 {[%emt 0:00:22]} 29. Na3 {[%emt 0:00:10]} Nc3 {[%emt 0:00:54]} 30. Qc2 {[%emt 0:00:00]} Nxb1 {[%emt 0:00:10]} 31. Qxb1 {[%emt 0:00:00]} Qxb4 {[%emt 0:04:19]} 32. Qxb4 {[%emt 0:00:00]} Rxb4 {[%emt 0:00:23]} 33. Nc2 {[%emt 0:00:01]} Rb2 {[%emt 0:00:22]} 34. Nd4 {[%emt 0:00:41]} Bxd4 {[%emt 0:00:11]} 35. Bxd4 {[%emt 0:00:35]} Rb3 {[%emt 0:01:32]} 36. Kg2 f6 {[%emt 0:02:26]} 37. Bc5 {[%emt 0:00:12]} Kf7 {[%emt 0:00:08]} 38. Be3 {[%emt 0:00:23]} Ke6 {[%emt 0:00:22]} 39. Kf3 {[%emt 0:00:12]} Kf5 {[%emt 0:00:00]} 40. Kg2 {[%emt 0:00:00]} h5 {[%emt 0:00:00]} 41. h3 {[%emt 0:00:00]} Rd3 {[%emt 0:00:32]} 42. Kh2 {[%emt 0:00:00]} Ke4 {[%emt 0:00:29]} 43. Kg2 {[%emt 0:00:59]} 0-1

[Event "1st 4NCL International Open"]
[Site "Telford"]
[Date "2018.11.03"]
[Round "7"]
[White "Ther, Mate"]
[Black "Ross, Stuart"]
[Result "1-0"]
[ECO "B38"]
[WhiteElo "1759"]
[BlackElo "1608"]
[Annotator "NA"]
[PlyCount "37"]
[EventDate "2018.10.31"]
[EventType "swiss"]
[EventCountry "GBR"]
[SourceTitle "playchess.com"]
[Source "ChessBase"]
[SourceQuality "1"]
[TimeControl "5400+30"]

1. e4 {[%emt 0:00:00]} c5 {[%emt 0:00:00]} 2. Nf3 {[%emt 0:00:00]} d6 {[%emt 0:00:00]} 3. d4 {[%emt 0:00:00]} cxd4 {[%emt 0:00:04]} 4. Nxd4 {[%emt 0:00:00]} Nf6 {[%emt 0:00:14]} 5. f3 {[%emt 0:00:00]} a6 {[%emt 0:01:20]} 6. c4 {[%emt 0:00:00]} g6 {[%emt 0:02:39]} 7. Nc3 {[%emt 0:00:00]} Bg7 {[%emt 0:00:14]} 8. Be3 {[%emt 0:00:00]} O-O {[%emt 0:00:53]} 9. Be2 {[%emt 0:00:03]} Bd7 {[%emt 0:02:25]} 10. O-O {[%emt 0:00:08]} Nc6 {[%emt 0:00:23]} 11. Qd2 {[%emt 0:00:07]} Rc8 {[%emt 0:02:13]} 12. Rac1 {[%emt 0:00:35]} Ne5 {[%emt 0:02:32]} 13. b3 {[%emt 0:00:08]} Nc6 {[%emt 0:01:16]} 14. Rfd1 {[%emt 0:00:11]} Nxd4 {[%emt 0:02:16]} 15. Bxd4 {[%emt 0:00:08]} Qa5 {[%emt 0:03:00]} 16. Nd5 {[%emt 0:00:13]} Qxd2 {[%emt 0:05:39]} 17. Nxe7+ {[%emt 0:00:26]} Kh8 {[%emt 0:00:21]} 18. Rxd2 {[%emt 0:00:19]} Bh6 {[%emt 0:00:33]} 19. Bxf6+ {[%emt 0:00:22]} 1-0

[Event "1st 4NCL International Open"]
[Site "Telford"]
[Date "2018.11.04"]
[Round "8"]
[White "Haria, Ravi"]
[Black "Gormally, Daniel W"]
[Result "1-0"]
[ECO "B51"]
[WhiteElo "2436"]
[BlackElo "2483"]
[Annotator "ChessBase"]
[PlyCount "89"]
[EventDate "2018.10.31"]
[EventType "swiss"]
[EventCountry "GBR"]
[SourceTitle "playchess.com"]
[Source "ChessBase"]
[SourceQuality "1"]
[TimeControl "5400+30"]

1. e4 {[%emt 0:00:00]} c5 {[%emt 0:01:38]} 2. Nf3 {[%emt 0:00:00]} d6 {[%emt 0:00:16]} 3. Bb5+ {[%emt 0:00:08]} Nc6 {[%emt 0:00:32]} 4. O-O {[%emt 0:00:19]} Bd7 {[%emt 0:00:08]} 5. Re1 {[%emt 0:00:12]} Nf6 {[%emt 0:00:21]} 6. c3 {[%emt 0:00:10]} a6 {[%emt 0:00:27]} 7. Bc4 {[%emt 0:00:12]} b5 {[%emt 0:01:59]} 8. Bf1 {[%emt 0:00:31]} e5 {[%emt 0:04:19]} 9. d4 {[%emt 0:00:43]} cxd4 {[%emt 0:02:16]} 10. cxd4 {[%emt 0:00:06]} Be7 {[%emt 0:00:24]} 11. d5 {[%emt 0:16:14]} Na7 {[%emt 0:01:27]} 12. a4 {[%emt 0:01:22]} O-O {[%emt 0:01:39]} 13. axb5 {[%emt 0:05:43]} axb5 {[%emt 0:02:59]} 14. Nbd2 {[%emt 0:07:24]} Qb8 {[%emt 0:05:50]} 15. Nb3 {[%emt 0:07:41]} Bd8 {[%emt 0:00:12]} 16. h3 {[%emt 0:04:46]} Nc8 {[%emt 0:00:07]} 17. Bd2 {[%emt 0:03:58]} Ra4 {[%emt 0:01:21]} 18. Bd3 {[%emt 0:00:55]} Bb6 {[%emt 0:04:14]} 19. Qe2 {[%emt 0:03:24]} Ne7 {[%emt 0:03:51]} 20. Na5 {[%emt 0:08:18]} Rc8 {[%emt 0:04:08]} 21. b3 {[%emt 0:01:28]} Rxa1 {[%emt 0:00:33]} 22. Rxa1 {[%emt 0:00:02]} h6 {[%emt 0:10:22]} 23. Ne1 {[%emt 0:13:33]} Bd4 {[%emt 0:02:23]} 24. Ra2 {[%emt 0:03:02]} Bc3 {[%emt 0:01:01]} 25. Nc2 {[%emt 0:01:02]} Bxd2 {[%emt 0:02:49]} 26. Qxd2 {[%emt 0:00:06]} Qb6 {[%emt 0:02:17]} 27. Qe3 {[%emt 0:03:04]} Qc7 {[%emt 0:01:11]} 28. Kh2 {[%emt 0:03:16]} Ng6 {[%emt 0:03:52]} 29. b4 {[%emt 0:04:42]} Qc3 {[%emt 0:02:23]} 30. g3 {[%emt 0:05:41]} h5 {[%emt 0:01:09]} 31. Ra3 {[%emt 0:01:07]} Qc7 32. Rb3 {[%emt 0:02:31]} h4 {[%emt 0:06:55]} 33. Na3 {[%emt 0:00:00]} hxg3+ {[%emt 0:01:32]} 34. fxg3 {[%emt 0:00:00]} Qc1 {[%emt 0:07:14]} 35. Qxc1 {[%emt 0:00:00]} Rxc1 {[%emt 0:00:05]} 36. Nc6 {[%emt 0:00:06]} Re1 {[%emt 0:04:23]} 37. Nxb5 {[%emt 0:00:50]} Nxe4 {[%emt 0:00:46]} 38. Bxe4 {[%emt 0:00:22]} Rxe4 {[%emt 0:00:10]} 39. Nc3 {[%emt 0:01:09]} Re3 {[%emt 0:02:24]} 40. b5 {[%emt 0:00:17]} Bc8 {[%emt 0:01:08]} 41. b6 {[%emt 0:03:19]} e4 {[%emt 0:00:33]} 42. Ra3 {[%emt 0:01:07]} Kh7 {[%emt 0:00:37]} 43. Nb5 {[%emt 0:01:40]} Re2+ {[%emt 0:01:57]} 44. Kg1 {[%emt 0:00:19]} e3 {[%emt 0:01:05]} 45. Nxd6 {[%emt 0:00:24]} 1-0

[Event "1st 4NCL International Open"]
[Site "Telford"]
[Date "2018.11.04"]
[Round "8"]
[White "Rahul Srivatshav P"]
[Black "Willow, Jonah B"]
[Result "1-0"]
[ECO "B48"]
[WhiteElo "2391"]
[BlackElo "2224"]
[Annotator "NA"]
[PlyCount "49"]
[EventDate "2018.10.31"]
[EventType "swiss"]
[EventCountry "GBR"]
[SourceTitle "playchess.com"]
[Source "ChessBase"]
[SourceQuality "1"]
[TimeControl "5400+30"]

1. e4 {[%emt 0:04:48]} c5 {[%emt 0:00:00]} 2. Nf3 {[%emt 0:00:09]} e6 {[%emt 0:00:32]} 3. d4 {[%emt 0:00:12]} cxd4 {[%emt 0:00:06]} 4. Nxd4 {[%emt 0:00:03]} Nc6 {[%emt 0:00:11]} 5. Nc3 {[%emt 0:00:11]} Qc7 {[%emt 0:00:07]} 6. Be3 {[%emt 0:00:05]} Nf6 {[%emt 0:00:05]} 7. f4 {[%emt 0:00:04]} Bb4 {[%emt 0:01:07]} 8. Ndb5 {[%emt 0:00:09]} Qa5 {[%emt 0:00:20]} 9. e5 {[%emt 0:00:05]} Ne4 {[%emt 0:03:58]} 10. Qd3 {[%emt 0:00:12]} Nxc3 {[%emt 0:00:06]} 11. bxc3 {[%emt 0:00:05]} Be7 {[%emt 0:00:04]} 12. Be2 {[%emt 0:00:16]} O-O {[%emt 0:00:38]} 13. O-O {[%emt 0:00:03]} f6 {[%emt 0:02:23]} 14. exf6 {[%emt 0:01:46]} Bxf6 {[%emt 0:00:15]} 15. Rab1 {[%emt 0:00:03]} d5 {[%emt 0:07:07]} 16. c4 {[%emt 0:00:04]} Rd8 {[%emt 0:20:46]} 17. c5 {[%emt 0:00:05]} b6 {[%emt 0:06:40]} 18. cxb6 {[%emt 0:00:04]} axb6 {[%emt 0:00:09]} 19. Bf2 {[%emt 0:00:16]} Ba6 {[%emt 0:03:00]} 20. Qh3 {[%emt 0:03:14]} Bxb5 {[%emt 0:09:54]} 21. Rxb5 {[%emt 0:02:53]} Qc3 {[%emt 0:02:29]} 22. Bd3 {[%emt 0:07:48]} g6 {[%emt 0:05:49]} 23. Qxe6+ {[%emt 0:00:26]} Kg7 {[%emt 0:00:24]} 24. Rb3 {[%emt 0:00:40]} Re8 {[%emt 0:02:51]} 25. Qd7+ {[%emt 0:00:46]} 1-0

[Event "1st 4NCL International Open"]
[Site "Telford"]
[Date "2018.11.04"]
[Round "8"]
[White "Macklin, Paul"]
[Black "Wall, Tim P"]
[Result "1/2-1/2"]
[ECO "C54"]
[WhiteElo "2361"]
[BlackElo "2248"]
[Annotator "NA"]
[PlyCount "30"]
[EventDate "2018.10.31"]
[EventType "swiss"]
[EventCountry "GBR"]
[SourceTitle "playchess.com"]
[Source "ChessBase"]
[SourceQuality "1"]
[TimeControl "5400+30"]

1. e4 {[%emt 0:00:00]} e5 {[%emt 0:03:33]} 2. Bc4 {[%emt 0:00:54]} Nf6 {[%emt 0:00:22]} 3. d3 {[%emt 0:00:04]} Nc6 {[%emt 0:00:21]} 4. Nf3 {[%emt 0:00:16]} Bc5 {[%emt 0:00:20]} 5. c3 {[%emt 0:01:59]} O-O {[%emt 0:00:28]} 6. Bb3 {[%emt 0:00:16]} d5 {[%emt 0:01:02]} 7. Qe2 {[%emt 0:01:02]} Be6 {[%emt 0:04:31]} 8. Bg5 {[%emt 0:05:48]} Be7 {[%emt 0:09:45]} 9. Nbd2 {[%emt 0:09:08]} h6 {[%emt 0:09:54]} 10. Bh4 {[%emt 0:07:31]} a5 {[%emt 0:16:27]} 11. a4 {[%emt 0:06:03]} Nh5 {[%emt 0:09:51]} 12. Bxe7 {[%emt 0:10:59]} Qxe7 {[%emt 0:00:28]} 13. g3 {[%emt 0:00:14]} Rad8 {[%emt 0:08:06]} 14. O-O {[%emt 0:08:21]} Nf6 {[%emt 0:08:14]} 15. exd5 {[%emt 0:08:29]} Bxd5 {[%emt 0:01:10]} 1/2-1/2

[Event "1st 4NCL International Open"]
[Site "Telford"]
[Date "2018.11.04"]
[Round "8"]
[White "Mihalik, Agoston"]
[Black "Ratnesan, Ranesh"]
[Result "1-0"]
[ECO "B52"]
[WhiteElo "2223"]
[BlackElo "1985"]
[Annotator "NA"]
[PlyCount "81"]
[EventDate "2018.10.31"]
[EventType "swiss"]
[EventCountry "GBR"]
[SourceTitle "playchess.com"]
[Source "ChessBase"]
[SourceQuality "1"]
[TimeControl "5400+30"]

1. e4 {[%emt 0:00:00]} c5 {[%emt 0:00:00]} 2. Nf3 {[%emt 0:00:00]} d6 {[%emt 0:00:00]} 3. Bb5+ {[%emt 0:00:00]} Bd7 {[%emt 0:00:05]} 4. Bxd7+ {[%emt 0:00:00]} Nxd7 {[%emt 0:00:27]} 5. O-O {[%emt 0:04:17]} Ngf6 {[%emt 0:01:18]} 6. Qe2 {[%emt 0:00:47]} Rc8 {[%emt 0:01:06]} 7. c4 {[%emt 0:03:58]} g6 {[%emt 0:00:30]} 8. d4 {[%emt 0:02:47]} cxd4 {[%emt 0:00:34]} 9. Nxd4 {[%emt 0:00:08]} Bg7 {[%emt 0:00:18]} 10. Nc3 {[%emt 0:00:40]} O-O {[%emt 0:00:29]} 11. Be3 {[%emt 0:03:20]} a6 {[%emt 0:05:43]} 12. Rac1 {[%emt 0:01:08]} Re8 {[%emt 0:04:39]} 13. b3 {[%emt 0:03:05]} Qa5 {[%emt 0:03:02]} 14. h3 {[%emt 0:10:24]} Nc5 {[%emt 0:10:16]} 15. Bd2 {[%emt 0:07:09]} Qd8 {[%emt 0:08:28]} 16. Nf3 {[%emt 0:22:38]} Rb8 {[%emt 0:15:59]} 17. Bf4 {[%emt 0:06:51]} Ne6 {[%emt 0:06:29]} 18. Bh2 {[%emt 0:03:04]} Qa5 {[%emt 0:04:09]} 19. Nd5 {[%emt 0:08:12]} Nxd5 {[%emt 0:06:19]} 20. cxd5 {[%emt 0:00:18]} Nc5 {[%emt 0:01:37]} 21. e5 {[%emt 0:00:41]} dxe5 {[%emt 0:03:51]} 22. Nxe5 {[%emt 0:00:14]} Rbd8 {[%emt 0:01:39]} 23. Rfd1 {[%emt 0:00:07]} Nd7 {[%emt 0:02:47]} 24. Nc4 {[%emt 0:04:30]} Qb5 {[%emt 0:01:05]} 25. Qf3 {[%emt 0:00:36]} Nf6 {[%emt 0:02:35]} 26. d6 {[%emt 0:00:09]} e5 {[%emt 0:01:36]} 27. a4 {[%emt 0:00:39]} Qb4 {[%emt 0:04:21]} 28. Nxe5 {[%emt 0:04:05]} Rxd6 {[%emt 0:01:05]} 29. Nd3 {[%emt 0:00:19]} Rxd3 {[%emt 0:00:28]} 30. Qxd3 {[%emt 0:00:07]} b5 {[%emt 0:01:22]} 31. Bd6 {[%emt 0:00:50]} Qe4 {[%emt 0:00:46]} 32. axb5 {[%emt 0:00:35]} Qxd3 {[%emt 0:00:24]} 33. Rxd3 {[%emt 0:00:03]} axb5 {[%emt 0:00:06]} 34. f3 {[%emt 0:00:55]} Bh6 {[%emt 0:01:05]} 35. Rcd1 {[%emt 0:01:47]} Be3+ {[%emt 0:01:47]} 36. Kf1 {[%emt 0:00:12]} Bb6 {[%emt 0:00:24]} 37. g4 {[%emt 0:00:21]} Nd7 {[%emt 0:01:05]} 38. Rd5 {[%emt 0:01:25]} Re3 {[%emt 0:01:15]} 39. R1d3 {[%emt 0:00:09]} Rxd3 {[%emt 0:00:06]} 40. Rxd3 {[%emt 0:00:03]} Bc5 {[%emt 0:00:52]} 41. Bc7 {[%emt 0:01:32]} 1-0